bitfinex-derivatives/quotes_ETHF0:USTF0_20251028
["timestamp","ask_amount","ask_price","bid_price","bid_amount"]
[1761684469576,2.066,3972.0,3971.9,4.082]
[1761684469777,6.697,3972.0,3971.9,4.082]
[1761684470170,2.066,3972.0,3971.9,4.082]
[1761684471874,2.066,3972.0,3971.4,3.2078]
[1761684472077,2.066,3972.0,3971.4,7.2888]
[1761684472273,1.2497,3971.9,3971.4,4.081]
[1761684472478,3.2078,3972.4,3971.8,0.8759]
[1761684472479,4.4575,3972.4,3971.8,0.8759]
[1761684472676,1.2497,3972.4,3971.8,2.1191]
[1761684472876,1.2497,3972.4,3972.0,1.2432]
[1761684473178,1.2497,3972.4,3971.9,4.081]
[1761684474075,1.2497,3971.9,3971.8,4.081]
[1761684474275,2.898,3971.9,3971.8,4.081]
[1761684474481,2.898,3971.9,3971.4,3.2078]
[1761684474681,1.2497,3971.8,3971.4,7.2878]
[1761684474881,1.2497,3971.8,3971.4,4.08]
[1761684475084,1.2497,3971.8,3971.4,5.3232]
[1761684475286,1.2497,3971.8,3971.4,4.08]
[1761684475486,1.2497,3971.7,3971.4,4.08]
[1761684476184,3.2078,3971.9,3971.8,2.1191]
[1761684476382,1.2497,3972.2,3971.8,2.1191]
[1761684476578,3.2078,3972.3,3971.8,0.8759]
[1761684476579,2.066,3971.9,3971.8,0.8759]
[1761684476886,1.2497,3971.8,3971.6,4.079]
[1761684477086,2.066,3971.7,3971.6,4.079]
[1761684478486,0.00267963,3972.5,3972.2,2.9267]
[1761684478682,1.2497,3973.5,3973.4,0.8759]
[1761684479086,0.8163,3972.6,3972.5,4.079]
[1761684479280,1.2497,3972.5,3972.0,1.2432]
[1761684479686,1.25182705,3972.5,3972.0,1.2462047]
[1761684479889,1.2497,3972.4,3972.3,0.8759]
[1761684480083,0.00212705,3972.5,3972.4,0.8759]
[1761684480388,1.25182705,3972.5,3972.4,0.8759]
[1761684480779,1.6483,3972.3,3972.0,0.0030047]
[1761684481083,1.2497,3972.4,3972.0,0.0030047]
[1761684481084,1.2497,3972.4,3972.0,2.9297047]
[1761684481280,1.2497,3972.4,3972.3,0.8759]
[1761684481485,1.2497,3972.4,3972.1,1.2432]
[1761684481486,2.066,3972.4,3972.1,1.2432]
[1761684481791,2.066,3972.1,3972.0,0.0030047]
[1761684482486,1.2497,3972.1,3972.0,0.8789047]
[1761684482691,1.25182705,3972.5,3972.4,0.8759]
[1761684483191,2.066,3972.1,3972.0,0.0030047]
[1761684483386,2.898,3972.1,3972.0,0.0030047]
[1761684487491,4.06469652,3973.8,3972.1,0.0752]
[1761684487690,1.2497,3974.1,3973.1,3.2078]
[1761684487891,1.2497,3974.1,3973.2,6.27668408]
[1761684488195,1.2497,3973.8,3973.2,4.076]
[1761684488494,1.25252617,3973.8,3973.6,3.2078]
[1761684489287,0.7977,3973.4,3973.3,4.075]
[1761684489488,1.72,3972.8,3972.7,1.74764408]
[1761684489696,1.72,3972.8,3972.5,7.2828]
[1761684490091,1.2128,3972.7,3972.5,7.2828]
[1761684490289,2.8543,3972.6,3972.5,3.2078]
[1761684491993,1.2128,3972.6,3972.5,3.2078]
[1761684492494,1.2128,3972.6,3972.1,3.2078]
[1761684494001,1.2128,3972.6,3972.5,3.2078]
[1761684494402,0.4631,3972.8,3972.5,7.2808]
[1761684494800,1.2128,3973.2,3972.5,7.2808]
[1761684495498,0.7851,3972.6,3972.5,3.2078]
[1761684495804,1.9979,3972.6,3972.5,3.2078]
[1761684496305,2.8543,3972.6,3972.5,3.1368]
[1761684496700,1.2128,3972.6,3972.5,3.1368]
[1761684496912,1.7237,3972.8,3972.5,3.1368]
[1761684497116,1.2128,3973.2,3972.5,3.1368]
[1761684497612,1.2128,3972.7,3972.5,3.1368]
[1761684498416,1.7237,3972.8,3972.5,3.1368]
[1761684498804,1.2128,3972.7,3972.5,3.1368]
[1761684499009,1.2128,3972.7,3972.5,3.58991]
[1761684499312,3.2078,3973.7,3972.5,3.1368]
[1761684499313,1.2128,3973.1,3972.5,3.1368]
[1761684499514,1.9979,3973.1,3973.0,3.2078]
[1761684499809,1.2128,3973.1,3973.0,3.2078]
[1761684500514,2.8543,3973.1,3973.0,3.2078]
[1761684504512,2.8543,3972.6,3972.5,3.2078]
[1761684504720,1.2128,3972.6,3972.5,3.2078]
[1761684506912,1.9979,3972.6,3972.5,3.2078]
[1761684507417,1.2128,3972.6,3972.5,3.2078]
[1761684507818,1.2128,3973.1,3972.5,3.2078]
[1761684508019,1.2128,3973.1,3972.9,3.2078]
[1761684510313,1.2128,3973.5,3973.1,0.45305]
[1761684510519,1.2128,3973.5,3973.4,3.2078]
[1761684511314,1.9979,3973.5,3973.4,3.2078]
[1761684511510,2.8543,3973.5,3973.4,3.2078]
[1761684511712,1.9979,3973.3,3973.2,4.068]
[1761684512010,2.8543,3973.3,3973.2,4.068]
[1761684513418,2.8543,3973.3,3972.9,3.2078]
[1761684513619,1.9979,3973.0,3972.9,3.2078]
[1761684513814,1.9979,3973.0,3972.9,7.2738]
[1761684514022,1.2128,3973.0,3972.9,7.2738]
[1761684514522,1.7237,3973.2,3972.9,7.72687]
[1761684515322,1.2128,3973.1,3972.9,7.2738]
[1761684518529,0.7851,3973.0,3972.9,7.2738]
[1761684518730,1.9979,3973.0,3972.9,7.2738]
[1761684519426,1.2128,3973.0,3972.9,9.02144408]
[1761684519622,1.7237,3973.2,3972.9,9.02144408]
[1761684519819,0.5109,3973.2,3973.0,1.74764408]
[1761684520429,1.6358,3973.2,3973.0,1.74764408]
[1761684520626,0.00282617,3973.8,3973.0,1.82284408]
[1761684520827,0.00282617,3973.8,3973.7,0.45298]
[1761684521028,0.00282617,3973.8,3973.7,4.064]
[1761684521225,0.00282617,3973.8,3973.7,6.3234957]
[1761684522424,0.5912,3974.6,3974.4,0.4529]
[1761684522629,0.5912,3974.6,3974.5,7.2708]
[1761684522824,1.623,3975.0,3974.5,7.2708]
[1761684523019,1.1249,3974.9,3974.7,3.2078]
[1761684523233,1.8716,3974.9,3974.8,4.063]
[1761684523420,1.87455177,3974.9,3974.8,4.06606494]
[1761684524127,0.00295177,3974.9,3974.8,4.06606494]
[1761684524321,0.4981,3975.6,3975.3,0.45279]
[1761684524524,1.623,3975.6,3975.3,5.01369477]
[1761684524730,1.8716,3975.5,3975.4,4.062]
[1761684525233,2.6454,3975.5,3975.4,4.062]
[1761684525435,1.87482855,3975.5,3975.4,4.062]
[1761684525729,1.12812855,3975.5,3975.4,4.062]
[1761684526125,2.855e-05,3975.5,3975.4,4.1372]
[1761684526333,2.855e-05,3975.5,3975.4,4.062]
[1761684526922,2.855e-05,3975.5,3975.4,4.1372]
[1761684527119,1.1249,3976.5,3975.4,8.53275837]
[1761684527329,1.1249,3976.6,3976.4,3.2078]
[1761684527530,1.1249,3976.6,3976.5,4.061]
[1761684528126,0.7467,3976.0,3975.9,3.2078]
[1761684528332,3.1435,3976.0,3975.9,3.2078]
[1761684529435,2.6454,3975.6,3975.5,3.2078]
[1761684529734,2.6454,3975.6,3975.5,7.2668]
[1761684530234,0.4981,3976.0,3974.8,0.00306494]
[1761684530235,1.8716,3974.9,3974.8,0.00306494]
[1761684533234,1.1249,3975.2,3974.8,0.45591494]
[1761684533432,1.1249,3975.2,3975.1,3.2078]
[1761684533738,1.1249,3975.7,3975.1,7.2658]
[1761684533933,1.1249,3975.7,3975.6,3.2078]
[1761684534135,1.1249,3975.7,3975.6,7.2658]
[1761684534535,1.1249,3975.9,3975.6,7.71856]
[1761684535535,1.1249,3975.9,3975.6,7.2658]
[1761684537239,1.1249,3975.9,3975.7,0.45275]
[1761684537539,1.1249,3975.9,3975.6,7.71856]
[1761684537940,1.1249,3975.9,3975.6,7.2658]
[1761684538137,0.4981,3976.0,3975.6,7.2658]
[1761684538345,3.2078,3977.2,3976.3,0.45267]
[1761684538346,1.12733551,3976.6,3976.3,0.45267]
[1761684538639,1.12733551,3976.6,3976.5,3.2078]
[1761684538841,1.12733551,3976.6,3976.5,7.2638]
[1761684539438,0.00243551,3976.6,3976.5,7.2638]
[1761684539835,1.623,3977.4,3977.2,0.45258]
[1761684540032,1.1469,3977.8,3977.3,7.2628]
[1761684540235,1.1469,3977.8,3977.7,3.2078]
[1761684540436,1.8936,3977.8,3977.7,3.2078]
[1761684540643,2.3697,3977.4,3977.3,3.2078]
[1761684540942,1.62530363,3977.4,3977.3,7.26544898]
[1761684541442,0.50040363,3977.4,3977.3,7.26544898]
[1761684541644,0.00230363,3977.4,3977.3,7.26544898]
[1761684542142,1.62530363,3977.4,3977.3,7.26544898]
[1761684542342,0.00230363,3977.4,3977.3,7.34064898]
[1761684543040,0.022,3977.8,3977.6,0.45253]
[1761684543241,0.022,3977.8,3977.7,7.2618]
[1761684543943,0.02382726,3977.8,3977.7,7.2618]
[1761684544839,1.14872726,3977.8,3977.7,7.2618]
[1761684545040,1.1249,3978.5,3978.4,0.45244]
[1761684545240,0.4981,3979.2,3978.8,0.45239]
[1761684545241,1.1249,3979.0,3978.8,0.45239]
[1761684545444,0.4981,3979.2,3979.0,0.45238]
[1761684546042,1.1249,3979.1,3979.0,0.45238]
[1761684546242,0.00252149,3979.2,3979.0,0.45238]
[1761684546443,0.00252149,3979.2,3979.1,0.0752]
[1761684546644,0.00252149,3979.2,3979.0,3.9492043]
[1761684546847,1.1249,3980.0,3979.7,0.4523]
[1761684547143,2.6454,3980.0,3979.9,2.0422]
[1761684547352,1.8716,3979.0,3978.9,3.2078]
[1761684547555,2.6454,3979.0,3978.9,3.2078]
[1761684547843,2.6454,3978.2,3978.1,3.2078]
[1761684548043,1.8716,3977.8,3977.7,3.2078]
[1761684548237,1.1249,3977.8,3977.7,7.2578]
[1761684548442,1.8716,3977.8,3977.7,3.2078]
[1761684548747,2.0529,3977.4,3977.3,7.26044898]
[1761684548951,1.3952,3977.4,3977.3,7.26044898]
[1761684549541,2.0529,3977.4,3977.3,7.26044898]
[1761684549739,2.7587,3977.4,3977.3,7.26044898]
[1761684549945,0.9989,3977.9,3977.3,7.26044898]
[1761684550252,0.4981,3978.1,3977.3,7.26044898]
[1761684550253,1.497,3978.1,3977.7,3.2078]
[1761684550444,0.9989,3978.0,3977.8,4.05]
[1761684550743,0.4981,3978.1,3977.3,0.00264898]
[1761684550744,2.1266,3977.4,3977.3,3.21044898]
[1761684550947,1.4212,3977.4,3977.3,7.25944898]
[1761684551145,0.9989,3977.4,3977.3,7.25944898]
[1761684551452,0.4981,3978.1,3977.3,7.25944898]
[1761684551453,0.9989,3978.0,3977.3,7.25944898]
[1761684551649,0.9989,3978.0,3977.9,3.2078]
[1761684551849,0.9989,3978.0,3977.9,7.2568]
[1761684552043,1.7043,3978.0,3977.9,7.2568]
[1761684553143,0.9989,3978.0,3977.9,7.2568]
[1761684553945,0.9989,3978.4,3977.9,7.2568]
[1761684554543,0.4223,3978.1,3977.9,7.2568]
[1761684554748,0.9989,3978.0,3977.9,7.2568]
[1761684555141,1.4212,3978.1,3977.9,7.2568]
[1761684555344,0.9989,3978.0,3977.9,7.2568]
[1761684555852,1.7043,3978.0,3977.9,7.2568]
[1761684557542,0.9989,3978.0,3977.9,7.2568]
[1761684557855,0.9989,3978.4,3977.9,7.2568]
[1761684558148,0.9989,3978.4,3978.3,3.2078]
[1761684558454,0.4981,3978.8,3978.3,7.2548]
[1761684558654,0.9989,3978.7,3978.4,0.45244]
[1761684558854,0.4981,3979.5,3978.8,0.4524]
[1761684559054,1.7043,3979.4,3979.3,3.2078]
[1761684559248,1.7043,3979.4,3979.3,7.2538]
[1761684560054,1.002,3979.4,3979.3,7.2538]
[1761684560352,0.0031,3979.4,3979.3,7.2538]
[1761684560553,0.0031,3979.4,3979.3,7.70614]
[1761684560954,1.002,3979.4,3979.3,7.2538]
[1761684561150,0.0031,3979.4,3979.3,7.2538]
[1761684561355,0.0031,3979.4,3979.3,7.329]
[1761684561949,0.9989,3980.6,3979.5,1.13081]
[1761684562154,1.7043,3980.6,3980.5,3.2078]
[1761684562355,1.7043,3980.6,3980.5,7.2528]
[1761684562853,1.00132962,3980.6,3980.5,7.25550946]
[1761684563251,0.00242962,3980.6,3980.5,7.25550946]
[1761684563452,0.9989,3981.5,3980.7,0.45218]
[1761684563655,0.9989,3981.5,3980.5,7.25550946]
[1761684563656,0.9989,3981.5,3981.4,3.2078]
[1761684563852,0.9989,3981.5,3981.4,7.2518]
[1761684564456,1.00069826,3981.5,3981.4,7.2518]
[1761684564855,0.7054,3980.7,3980.6,3.2078]
[1761684565058,1.7043,3980.7,3980.6,7.2518]
[1761684565254,0.4223,3980.9,3980.6,7.2518]
[1761684565461,0.9989,3981.3,3980.6,7.2518]
[1761684565760,0.4223,3980.9,3980.8,3.2078]
[1761684565962,1.4212,3980.9,3980.8,3.2078]
[1761684566756,2.3685,3980.6,3980.5,0.00270946]
[1761684566957,1.3696,3980.1,3980.0,3.05]
[1761684567162,2.3685,3980.1,3980.0,3.05]
[1761684567960,0.4223,3980.2,3980.0,3.05306159]
[1761684568156,0.9989,3980.6,3980.0,3.05306159]
[1761684568357,0.9989,3980.6,3980.4,3.2078]
[1761684568563,2.3685,3980.6,3980.5,4.042]
[1761684568763,1.7043,3980.5,3980.4,3.2078]
[1761684569270,1.7043,3980.5,3980.4,7.2488]
[1761684569568,0.9989,3980.8,3980.4,3.2078]
[1761684569766,0.9989,3980.8,3980.5,4.041]
[1761684570066,0.9989,3980.8,3980.6,4.041]
[1761684572260,0.7054,3980.7,3980.6,4.041]
[1761684572466,0.9989,3980.6,3980.4,3.2078]
[1761684572764,0.9989,3980.6,3980.5,4.04]
[1761684572965,0.9989,3980.8,3980.5,4.04]
[1761684573169,0.9989,3981.2,3980.5,4.04]
[1761684573369,0.9989,3981.2,3981.1,3.2078]
[1761684573668,0.9989,3981.4,3981.1,7.2478]
[1761684574268,0.9989,3981.4,3981.1,7.69994]
[1761684574470,1.00069826,3981.5,3981.1,7.2478]
[1761684574669,1.00069826,3981.5,3981.1,7.69994]
[1761684575169,1.00069826,3981.5,3981.1,3.2078]
[1761684575170,0.9989,3981.2,3981.1,3.2078]
[1761684575470,1.7043,3981.2,3981.1,7.2468]
[1761684575965,1.00069826,3981.5,3981.1,7.2468]
[1761684576565,1.00069826,3981.5,3981.1,3.2078]
[1761684576566,2.3685,3981.2,3981.1,3.2078]
[1761684576771,2.3685,3980.8,3980.7,3.2078]
[1761684576977,2.3685,3980.8,3980.7,6.2568]
[1761684577875,1.7043,3980.8,3980.7,6.2568]
[1761684578275,2.3685,3980.8,3980.7,6.2568]
[1761684578673,2.3685,3980.8,3980.7,3.2078]
[1761684578878,2.0854,3980.4,3980.3,3.2078]
[1761684579175,2.7908,3980.4,3980.3,6.2578]
[1761684579772,10.7908,3980.4,3980.3,3.05]
[1761684579973,2.7908,3980.4,3980.3,3.05]
[1761684582369,2.7908,3980.4,3977.8,2.19797892]
[1761684582370,2.2281,3979.2,3979.1,3.2078]
[1761684582566,2.2281,3979.2,3979.1,7.2438]
[1761684582973,0.9647,3979.2,3979.1,7.2438]
[1761684583281,0.9647,3979.2,3979.1,7.24703276]
[1761684583867,2.2281,3979.2,3979.1,7.24703276]
[1761684584069,2.2281,3979.2,3979.1,0.00323276]
[1761684584567,2.2281,3978.4,3978.3,3.2078]
[1761684584871,2.2281,3978.4,3978.3,5.7828]
[1761684585273,0.9647,3978.7,3978.3,5.7828]
[1761684585478,0.00243384,3978.7,3978.3,5.78556248]
[1761684585778,0.00243384,3978.7,3978.5,0.45243]
[1761684586173,0.9647,3978.6,3978.3,3.21056248]
[1761684586373,0.9647,3978.6,3978.4,4.035]
[1761684586578,1.5826,3978.5,3978.4,4.035]
[1761684587573,0.9647,3978.5,3978.4,4.035]
[1761684587975,0.00243384,3978.7,3978.4,4.48744]
[1761684589180,0.00243384,3978.7,3978.4,4.035]
[1761684589181,0.96713384,3978.7,3978.4,4.035]
[1761684590381,0.96713384,3978.7,3978.3,3.21056248]
[1761684590681,1.5826,3978.5,3978.4,4.034]
[1761684591076,0.9647,3978.5,3978.4,4.034]
[1761684591269,0.00243384,3978.7,3978.4,4.034]
[1761684591477,0.00243384,3978.7,3978.5,0.45243]
[1761684591981,0.96713384,3978.7,3978.4,4.034]
[1761684592181,2.2281,3978.4,3978.3,3.21056248]
[1761684592376,2.2281,3978.4,3978.3,7.24456248]
[1761684592771,1.5826,3978.4,3978.3,7.24456248]
[1761684593480,1.5826,3978.4,3978.3,3.21056248]
[1761684593885,2.2281,3978.4,3978.3,7.24356248]
[1761684594687,0.9647,3978.4,3978.3,7.24356248]
[1761684595082,0.9647,3978.6,3978.3,7.24356248]
[1761684596177,1.5826,3978.4,3978.3,3.21056248]
[1761684596379,2.2281,3978.4,3978.3,7.24356248]
[1761684596679,2.2281,3978.4,3978.3,4.03576248]
[1761684599283,2.2281,3978.4,3978.3,0.00276248]
[1761684599484,2.2281,3978.4,3978.3,4.03576248]
[1761684600582,0.9647,3978.4,3978.3,7.24356248]
[1761684601094,2.2281,3978.4,3978.3,7.24356248]
[1761684601380,0.6179,3977.4,3977.3,3.2078]
[1761684601574,0.4056,3976.8,3976.5,10.47890717]
[1761684601774,0.9647,3977.2,3976.6,4.032]
[1761684601974,0.9647,3977.2,3977.1,3.2078]
[1761684602177,0.9647,3977.2,3977.1,7.2388]
[1761684602478,0.9647,3977.2,3977.1,7.24149175]
[1761684602680,1.5826,3977.2,3977.1,7.24149175]
[1761684602884,2.2281,3977.2,3977.1,4.03369175]
[1761684603284,2.2281,3977.2,3977.1,0.00269175]
[1761684603484,2.2281,3977.2,3977.1,4.03469175]
[1761684606180,2.2281,3977.2,3977.1,0.00269175]
[1761684608388,0.9647,3977.2,3977.1,0.00269175]
[1761684608590,0.9647,3977.2,3977.1,3.21049175]
[1761684610491,2.1259,3977.2,3977.1,3.21049175]
[1761684610687,1.9542,3976.0,3975.9,3.2078]
[1761684610897,1.9542,3976.0,3975.9,7.2378]
[1761684611591,1.9542,3976.0,3975.9,7.24003577]
[1761684612088,1.9542,3976.0,3975.9,3.21003577]
[1761684612290,1.9542,3976.0,3975.9,0.00223577]
[1761684613991,5.162,3976.0,3975.9,0.00223577]
[1761684614385,13.2372,3976.0,3975.9,0.00223577]
[1761684614590,2.2969,3975.6,3975.5,4.029]
[1761684615593,2.30012423,3975.6,3975.5,4.03213877]
[1761684615899,2.2969,3974.4,3974.3,3.2078]
[1761684616098,2.2969,3974.4,3974.3,7.2368]
[1761684616500,2.2969,3974.4,3974.3,3.2078]
[1761684616692,1.4109,3974.0,3973.9,3.2078]
[1761684616893,0.8382,3974.0,3973.9,7.23810993]
[1761684617691,0.8382,3974.3,3973.9,7.23810993]
[1761684617898,0.8382,3974.7,3974.0,0.0752]
[1761684618106,0.8382,3974.7,3974.6,3.2078]
[1761684618403,0.8382,3974.7,3974.6,7.2358]
[1761684619900,1.9542,3974.7,3974.6,7.2358]
[1761684620695,1.9542,3974.7,3974.6,3.2078]
[1761684620898,1.9542,3974.0,3973.9,0.00230993]
[1761684621099,1.9542,3974.0,3973.9,4.03030993]
[1761684621900,0.8382,3974.8,3973.9,4.03030993]
[1761684622098,0.00322423,3975.6,3975.5,0.45278]
[1761684622395,0.3427,3976.8,3976.0,0.45272]
[1761684622604,0.3427,3976.8,3976.3,3.2078]
[1761684622795,0.3427,3976.8,3976.4,4.027]
[1761684623103,0.3427,3976.8,3976.4,4.47968]
[1761684623295,0.34464191,3976.8,3976.7,3.2078]
[1761684623497,0.34464191,3976.8,3976.7,3.21075147]
[1761684624002,1.46064191,3976.8,3976.7,0.00295147]
[1761684624204,1.46064191,3976.8,3976.7,4.02995147]
[1761684624400,1.75554191,3976.8,3976.7,4.02995147]
[1761684626304,2.29884191,3976.8,3976.7,0.00295147]
[1761684627101,1.18284191,3976.8,3976.7,3.21075147]
[1761684628608,0.5727,3976.0,3975.9,3.2078]
[1761684628808,1.1809,3975.6,3974.7,1.13217]
[1761684629003,0.3427,3976.2,3974.7,1.13217]
[1761684629004,0.8382,3976.0,3975.5,3.2078]
[1761684629210,0.8382,3976.7,3976.2,0.45269]
[1761684629413,0.8382,3976.7,3976.4,3.2078]
[1761684629613,0.8382,3976.7,3976.4,3.21021582]
[1761684630005,0.34464191,3976.8,3976.4,3.21021582]
[1761684630006,1.4109,3976.5,3976.4,3.21021582]
[1761684630708,1.9542,3976.5,3976.4,0.00241582]
[1761684631107,0.8382,3975.5,3975.2,3.2078]
[1761684631506,1.4109,3974.9,3974.8,3.2078]
[1761684631715,0.8382,3974.3,3974.0,3.2078]
[1761684631902,1.1809,3973.8,3973.7,4.024]
[1761684632107,1.1809,3973.8,3973.7,4.02679046]
[1761684632108,0.34467782,3973.8,3973.7,4.02679046]
[1761684632303,1.46067782,3973.8,3973.7,4.02679046]
[1761684632509,1.75557782,3973.8,3973.7,4.02679046]
[1761684633212,1.18287782,3973.8,3973.7,4.02679046]
[1761684636118,0.00197782,3973.8,3973.7,4.02679046]
[1761684636523,0.3427,3974.4,3973.7,4.02679046]
[1761684636720,1.1809,3974.4,3974.3,3.2078]
[1761684636921,1.1809,3974.4,3973.7,4.02679046]
[1761684636922,0.8382,3974.2,3973.9,3.2078]
[1761684637231,1.9542,3974.1,3974.0,4.023]
[1761684637627,1.95641956,3974.1,3974.0,4.023]
[1761684637829,1.4109,3973.8,3973.7,0.00279046]
[1761684638020,0.3427,3973.9,3973.0,3.2078]
[1761684638021,1.116,3973.1,3973.0,3.2078]
[1761684638223,1.9542,3972.9,3972.8,4.04817116]
[1761684639228,1.9542,3972.9,3972.8,4.05140941]
[1761684640335,1.9542,3972.9,3972.8,0.02840941]
[1761684642027,1.7962,3971.9,3971.8,3.2078]
[1761684642420,0.7581,3971.9,3971.8,3.2078]
[1761684642629,0.7581,3971.9,3971.8,7.684]
[1761684642825,0.3365,3972.5,3971.9,1.13299]
[1761684643124,0.7581,3972.8,3972.4,3.2078]
[1761684643318,0.7581,3972.8,3972.5,4.023]
[1761684643736,0.7581,3972.6,3972.5,4.023]
[1761684644033,2.1327,3972.5,3972.4,3.2078]
[1761684644734,1.7962,3972.3,3972.2,4.023]
[1761684646730,1.7962,3972.1,3971.9,0.00178487]
[1761684646949,1.7962,3972.0,3971.9,0.00178487]
[1761684649633,0.7581,3972.0,3971.9,0.00178487]
[1761684649830,0.7581,3972.4,3972.0,0.45318]
[1761684650025,0.7581,3972.9,3972.4,0.45314]
[1761684650225,0.7581,3972.9,3972.6,3.2078]
[1761684650226,0.5071,3972.7,3972.6,3.2078]
[1761684650437,1.2652,3972.7,3972.6,3.2078]
[1761684651732,1.2652,3972.7,3972.5,4.022]
[1761684651929,1.2652,3972.6,3972.5,4.022]
[1761684652934,0.7581,3972.6,3972.5,4.47513]
[1761684653135,0.3427,3973.2,3973.0,0.45307]
[1761684653335,0.7581,3973.5,3973.4,0.45303]
[1761684653635,0.7581,3973.8,3973.6,0.453]
[1761684653835,0.7581,3973.8,3973.7,4.021]
[1761684654636,1.2652,3973.8,3973.7,4.021]
[1761684654835,0.3365,3973.2,3973.0,3.2078]
[1761684655036,1.0946,3973.2,3973.1,4.021]
[1761684655942,0.7581,3973.6,3973.1,4.021]
[1761684656245,0.7581,3973.8,3973.5,3.2078]
[1761684656440,0.7581,3973.8,3973.6,4.47399]
[1761684656945,0.7581,3973.8,3973.6,4.021]
[1761684657146,0.7581,3973.8,3973.6,4.47399]
[1761684659941,0.7581,3973.8,3973.6,4.021]
[1761684660249,0.7581,3973.8,3973.6,4.474]
[1761684660638,1.7962,3973.6,3973.5,3.2078]
[1761684660835,1.2652,3973.1,3973.0,3.2078]
[1761684661046,1.2652,3973.1,3973.0,7.2268]
[1761684661249,0.7581,3973.1,3973.0,7.2268]
[1761684662045,1.7962,3973.1,3973.0,7.2268]
[1761684662345,1.7962,3973.1,3973.0,4.019]
[1761684662543,0.7581,3973.0,3972.6,3.2078]
[1761684662739,0.7581,3972.2,3971.8,3.2078]
[1761684662940,1.7962,3972.1,3972.0,4.019]
[1761684663551,1.2652,3972.0,3971.4,7.2258]
[1761684663752,1.7962,3972.0,3971.4,7.2258]
[1761684664342,1.7962,3972.0,3971.4,4.018]
[1761684665351,2.1327,3971.1,3971.0,3.2078]
[1761684665648,1.7962,3970.9,3970.8,4.018]
[1761684665843,0.7581,3970.9,3970.8,7.2258]
[1761684666046,0.7581,3971.7,3970.8,7.2258]
[1761684666240,0.75992111,3971.7,3971.1,3.2078]
[1761684666437,1.2652,3971.3,3971.2,4.018]
[1761684666847,0.7581,3971.3,3971.2,4.018]
[1761684667745,1.7962,3970.9,3970.8,0.00214731]
[1761684668041,0.3365,3971.1,3970.8,4.02014731]
[1761684668244,0.7448,3971.0,3970.8,4.02014731]
[1761684668441,0.7448,3971.0,3970.8,4.47346731]
[1761684669043,0.7448,3971.0,3970.8,4.47345731]
[1761684669448,0.4755,3970.9,3970.8,4.02014731]
[1761684669742,0.7448,3970.9,3970.8,4.02014731]
[1761684670360,1.2015,3970.9,3970.8,4.02014731]
[1761684670650,0.7448,3970.9,3970.8,4.02014731]
[1761684671244,1.2015,3970.9,3970.8,4.02014731]
[1761684671449,1.6687,3970.9,3970.8,0.00214731]
[1761684672049,1.2015,3970.9,3970.8,0.00214731]
[1761684672540,0.7448,3970.9,3970.8,0.00214731]
[1761684672953,1.2015,3970.9,3970.8,0.00214731]
[1761684673142,0.3365,3971.1,3970.9,0.45331]
[1761684673348,0.00182111,3971.7,3971.5,0.45324]
[1761684673548,3.5443,3972.5,3971.6,7.2248]
[1761684673549,1.0096,3972.5,3971.6,7.2248]
[1761684673848,0.6731,3972.3,3971.8,3.2078]
[1761684674049,0.6731,3972.3,3972.2,3.2078]
[1761684674253,0.6731,3972.3,3972.2,7.2248]
[1761684674454,0.67631614,3972.3,3972.2,3.2078]
[1761684674652,0.67631614,3972.3,3972.2,4.017]
[1761684674949,0.00321614,3972.3,3972.2,7.2248]
[1761684675953,0.67631614,3972.3,3972.2,7.2248]
[1761684676452,0.00321614,3972.3,3972.2,7.2248]
[1761684676655,0.3365,3973.2,3972.2,8.43288]
[1761684676656,0.6731,3973.1,3972.2,8.43288]
[1761684676950,3.2078,3974.5,3973.0,3.2078]
[1761684677152,3.2078,3974.5,3972.6,1.13279]
[1761684677153,3.2078,3974.5,3973.6,3.2078]
[1761684677353,3.2078,3974.5,3973.7,4.016]
[1761684677555,0.4567,3973.8,3973.7,4.01917246]
[1761684677746,0.9239,3973.8,3973.7,0.00317246]
[1761684678155,0.9239,3973.8,3971.8,2.40784387]
[1761684678156,0.2906,3972.5,3972.4,3.2078]
[1761684678352,0.2906,3973.2,3972.4,3.2078]
[1761684678353,0.2906,3973.2,3972.4,7.2238]
[1761684679060,1.1298,3972.9,3972.8,3.2078]
[1761684679360,0.6731,3972.9,3972.8,7.2238]
[1761684679658,1.597,3972.9,3972.8,4.016]
[1761684680057,1.597,3972.9,3972.8,7.2238]
[1761684680451,1.597,3972.9,3972.8,4.016]
[1761684681154,0.6731,3972.9,3972.8,7.2238]
[1761684681354,0.6731,3972.9,3972.8,4.016]
[1761684681665,3.2078,3973.7,3972.8,4.016]
[1761684681666,0.6731,3973.6,3972.8,7.2238]
[1761684681953,0.6731,3973.6,3973.2,3.2078]
[1761684682153,0.29259783,3973.9,3973.2,3.2078]
[1761684682154,0.6731,3973.8,3973.5,0.45301]
[1761684682353,0.6731,3973.8,3973.6,3.2078]
[1761684682659,0.29259783,3973.9,3972.9,3.2078]
[1761684682660,0.6731,3973.1,3972.9,3.2078]
[1761684682959,1.8876,3972.5,3972.0,3.2078]
[1761684683154,1.8876,3972.5,3970.7,1.13332]
[1761684683155,1.1298,3971.7,3971.6,3.2078]
[1761684683355,0.6731,3971.7,3971.6,3.2078]
[1761684683559,0.2906,3971.8,3971.6,3.2078]
[1761684683758,0.6731,3971.7,3971.6,3.2078]
[1761684684159,0.6731,3971.7,3971.6,3.21072912]
[1761684686362,1.1298,3971.7,3971.6,3.21072912]
[1761684686658,0.6731,3971.7,3971.6,3.21072912]
[1761684686863,1.1298,3971.7,3971.6,3.21072912]